bitfinex/quotes_BTCUSD_20220405
["timestamp","ask_amount","ask_price","bid_price","bid_amount"]
[1649189947661,0.1795185,45980.0,45974.0,0.17712548]
[1649189948906,0.1745185,45980.0,45974.0,0.17712548]
[1649189949355,0.00185523,45979.0,45974.0,0.17829786]
[1649189950558,0.00185523,45979.0,45974.0,0.00117238]
[1649189951696,0.02035393,45981.0,45974.0,0.00117238]
[1649189951796,0.321276,45980.0,45974.0,0.00117238]
[1649189951897,0.02035393,45981.0,45974.0,0.00117238]
[1649189951997,0.321276,45980.0,45974.0,0.00117238]
[1649189952398,0.07474193,45981.0,45974.0,0.00117238]
[1649189952598,0.12474193,45981.0,45974.0,0.00117238]
[1649189952699,0.07035393,45981.0,45974.0,0.00117238]
[1649189953197,0.02035393,45981.0,45974.0,0.00117238]
[1649189953499,0.02035393,45981.0,45973.0,0.22140685]
[1649189955101,0.02035393,45981.0,45972.0,0.22257832]
[1649189955352,0.32035393,45981.0,45972.0,0.22257832]
[1649189955452,0.32035393,45981.0,45973.0,0.22140685]
[1649189955652,0.32035393,45981.0,45972.0,0.00117147]
[1649189955653,0.32035393,45981.0,45976.0,0.00109554]
[1649189955752,0.321276,45980.0,45976.0,0.00109554]
[1649189955853,0.32035393,45981.0,45976.0,0.00109554]
[1649189956054,0.321276,45980.0,45976.0,0.00109554]
[1649189956355,0.321276,45979.0,45976.0,0.00109554]
[1649189956455,0.32035393,45981.0,45976.0,0.00109554]
[1649189956806,0.321276,45980.0,45976.0,0.00109554]
[1649189956905,0.32035393,45981.0,45976.0,0.00109554]
[1649189957206,0.321276,45980.0,45976.0,0.00109554]
[1649189957305,0.32035393,45981.0,45976.0,0.00109554]
[1649189957408,0.371276,45980.0,45976.0,0.00109554]
[1649189957508,0.05,45980.0,45976.0,0.00109554]
[1649189957607,0.104388,45980.0,45976.0,0.00109554]
[1649189957809,0.05,45979.0,45976.0,0.00109554]
[1649189959016,0.3,45978.0,45976.0,0.00109554]
[1649189959123,0.35,45978.0,45976.0,0.00109554]
[1649189959317,0.35,45978.0,45976.0,0.00066796]
[1649189959817,0.35,45978.0,45976.0,0.00110267]
[1649189961021,0.3,45977.0,45976.0,0.00110267]
[1649189962224,0.671276,45977.0,45976.0,0.00110267]
[1649189962324,1.1016348,45977.0,45976.0,0.00110267]
[1649189962425,0.93467789,45977.0,45976.0,0.00110267]
[1649189962524,1.15675671,45977.0,45976.0,0.00110267]
[1649189963860,0.93467789,45977.0,45976.0,0.00110267]
[1649189963961,1.340467,45977.0,45976.0,0.00110267]
[1649189964062,1.340467,45977.0,45976.0,0.00030722]
[1649189964163,1.340467,45977.0,45971.0,0.0810128]
[1649189964164,1.11838818,45977.0,45971.0,0.0810128]
[1649189964266,0.332156,45976.0,45971.0,0.0810128]
[1649189964361,0.22231029,45974.0,45971.0,0.0810128]
[1649189964461,0.85583445,45973.0,45971.0,0.0810128]
[1649189964562,0.52231029,45972.0,45971.0,0.0810128]
[1649189964665,1.55,45971.0,45966.0,0.001]
[1649189964764,0.17785967,45968.0,45966.0,0.001]
[1649189964863,0.51001567,45967.0,45966.0,0.001]
[1649189964962,0.77746744,45967.0,45966.0,0.001]
[1649189965060,1.07746744,45967.0,45966.0,0.001]
[1649189965463,0.682156,45967.0,45966.0,0.001]
[1649189965561,0.96673954,45967.0,45966.0,0.001]
[1649189966560,1.32781229,45967.0,45966.0,0.001]
[1649189967461,1.02115282,45967.0,45966.0,0.001]
[1649189967762,1.02338014,45967.0,45966.0,0.001]
[1649189971769,1.02338014,45967.0,45966.0,0.00239763]
[1649189975354,0.72338014,45967.0,45966.0,0.00239763]
[1649189975651,0.66896686,45967.0,45966.0,0.00239763]
[1649189976054,0.34769086,45967.0,45966.0,0.00239763]
[1649189976152,0.06310732,45967.0,45966.0,0.00239763]
[1649189976252,0.38438332,45967.0,45966.0,0.00239763]
[1649189976401,0.06310732,45967.0,45966.0,0.00239763]
[1649189976602,0.38438332,45967.0,45966.0,0.00239763]
[1649189977202,0.64928098,45967.0,45966.0,0.00239763]
[1649189977304,0.32800498,45967.0,45966.0,0.00239763]
[1649189977403,0.06310732,45967.0,45966.0,0.00239763]
[1649189977504,0.38438332,45967.0,45966.0,0.00239763]
[1649189978357,0.30802065,45967.0,45966.0,0.00239763]
[1649189979059,0.06310732,45967.0,45966.0,0.00239763]
[1649189979408,0.38438332,45967.0,45966.0,0.00239763]
[1649189979507,0.06310732,45967.0,45966.0,0.00239763]
[1649189979612,0.38438332,45967.0,45966.0,0.00239763]
[1649189979713,0.06310732,45967.0,45966.0,0.00239763]
[1649189981266,0.38438332,45967.0,45966.0,0.00239763]
[1649189981363,0.06310732,45967.0,45966.0,0.00239763]
[1649189982407,0.38438332,45967.0,45966.0,0.00239763]
[1649189983455,0.06310732,45967.0,45966.0,0.00239763]
[1649189983555,0.05222732,45967.0,45966.0,0.00239763]
[1649189983657,0.30063566,45967.0,45966.0,0.00239763]
[1649189983763,0.67191166,45967.0,45966.0,0.00239763]
[1649189984408,0.66835343,45967.0,45966.0,0.001]
[1649189984508,0.71835343,45967.0,45966.0,0.001]
[1649189985284,1.07007351,45967.0,45966.0,0.001]
[1649189985722,0.71835343,45967.0,45966.0,0.001]
[1649189986224,0.76185343,45967.0,45966.0,0.001]
[1649189986624,0.76185343,45967.0,45966.0,0.0009082]
[1649189988378,0.75266444,45967.0,45966.0,0.00180365]
[1649189990264,1.25266444,45967.0,45966.0,0.00180365]
[1649189990970,1.26356588,45967.0,45966.0,0.00180365]
[1649189991071,0.78902608,45967.0,45966.0,0.00180365]
[1649189991371,0.5,45967.0,45966.0,0.00180365]
[1649189991772,0.321282,45967.0,45966.0,0.00180365]
[1649189993065,0.37346065,45967.0,45966.0,0.00180365]
[1649189993163,0.42346065,45967.0,45966.0,0.00180365]
[1649189994813,0.5866996,45967.0,45966.0,0.00180365]
[1649189995116,0.5366996,45967.0,45966.0,0.00180365]
[1649189995214,0.86846033,45967.0,45965.0,0.00228205]
[1649189995313,1.871282,45966.0,45965.0,0.00228205]
[1649189995413,1.921282,45966.0,45965.0,0.00228205]
[1649189995618,2.421282,45966.0,45965.0,0.00228205]
[1649189995719,2.432162,45966.0,45965.0,0.00228205]
[1649189995818,2.432162,45966.0,45954.0,0.002]
[1649189995819,0.054428,45963.0,45957.0,0.00218735]
[1649189995919,0.76403735,45962.0,45957.0,0.00218735]
[1649189996072,0.81541612,45962.0,45957.0,0.00218735]
[1649189996269,0.58631936,45958.0,45957.0,0.00218735]
[1649189996419,0.63351836,45958.0,45957.0,0.00218735]
[1649189996661,0.93836666,45958.0,45954.0,0.002]
[1649189996813,0.371282,45957.0,45954.0,0.002]
[1649189997413,0.42570662,45957.0,45954.0,0.002]
[1649189998863,0.42570662,45957.0,45955.0,0.00417555]
[1649190000277,0.371282,45957.0,45955.0,0.00417555]
[1649190001285,0.421282,45957.0,45955.0,0.00417555]
[1649190001884,0.01088,45956.0,45955.0,0.00417555]
[1649190001979,0.332162,45956.0,45955.0,0.00417555]
[1649190002987,0.32964191,45956.0,45955.0,0.00417555]
[1649190004734,0.3313427,45956.0,45955.0,0.00417555]
[1649190005786,0.32298279,45956.0,45955.0,0.00417555]
[1649190013269,0.32084914,45956.0,45955.0,0.00417555]
[1649190013570,0.00170079,45956.0,45955.0,0.00417555]
[1649190014172,0.00170079,45956.0,45955.0,0.24396896]
[1649190014322,0.00170079,45956.0,45955.0,0.29835796]
[1649190014420,0.00170079,45956.0,45955.0,0.24396896]
[1649190017346,0.00170079,45956.0,45955.0,0.24499002]
[1649190018447,0.00170079,45956.0,45955.0,0.54499002]
[1649190019046,0.00100507,45957.0,45956.0,1.40165836]
[1649190019134,0.00100507,45957.0,45956.0,0.21369333]
[1649190019237,0.00100507,45957.0,45956.0,0.51369333]
[1649190019433,0.00100507,45957.0,45956.0,0.34696936]
[1649190019535,0.00100694,45970.0,45956.0,0.39873871]
[1649190019633,0.00100694,45970.0,45968.0,0.30708891]
[1649190021091,0.321286,45973.0,45972.0,0.00306923]
[1649190021339,0.27756928,45979.0,45972.0,0.00306923]
[1649190021439,0.321286,45978.0,45972.0,0.00306923]
[1649190021537,0.06526663,45977.0,45972.0,0.00306923]
[1649190021638,0.321286,45976.0,45972.0,0.00306923]
[1649190021940,0.421286,45976.0,45972.0,0.00306923]
[1649190022338,0.42148004,45976.0,45972.0,0.00306923]
[1649190022639,0.22715113,45975.0,45972.0,0.00306923]
[1649190022771,0.321286,45974.0,45972.0,0.00306923]
[1649190022869,0.42568,45974.0,45972.0,0.00306923]
[1649190022972,0.47568,45974.0,45972.0,0.00306923]
[1649190027135,0.42568,45974.0,45972.0,0.00306923]
[1649190028238,0.42568,45974.0,45972.0,0.00408361]
[1649190030282,0.104394,45974.0,45972.0,0.00408361]
[1649190030383,0.05,45974.0,45972.0,0.00408361]
[1649190030532,0.28695081,45981.0,45972.0,0.00408361]
[1649190030533,0.05,45976.0,45972.0,0.00408361]
[1649190030634,0.00019368,45975.0,45972.0,0.00408361]
[1649190031231,0.00019368,45975.0,45974.0,0.28482815]
[1649190031534,0.01087,45980.0,45974.0,0.28482815]
[1649190031732,0.01064957,45980.0,45974.0,0.28482815]
[1649190031834,0.00019368,45977.0,45974.0,0.28482815]
[1649190032286,0.00019368,45977.0,45975.0,0.33439]
[1649190032485,0.00019368,45977.0,45975.0,0.03439]
[1649190032783,0.02035393,45981.0,45975.0,0.03439]
[1649190032986,0.02035393,45981.0,45975.0,0.088753]
[1649190033083,0.00053176,45978.0,45975.0,0.088753]
[1649190033886,0.00053176,45978.0,45975.0,0.03537628]
[1649190034019,0.02035393,45981.0,45975.0,0.03537628]
[1649190034118,0.02035393,45981.0,45975.0,0.00098628]
[1649190034219,0.01968336,45981.0,45975.0,0.00098628]
[1649190034320,0.00020548,45979.0,45975.0,0.00098628]
[1649190034518,0.00020548,45979.0,45976.0,0.034388]
[1649190034620,0.00020548,45979.0,45975.0,0.00098628]
[1649190035222,0.29580769,45980.0,45975.0,0.00098628]
[1649190035223,0.3501867,45980.0,45975.0,0.00098628]
[1649190035523,0.00020548,45979.0,45975.0,0.00098628]
[1649190036481,0.10437901,45980.0,45975.0,0.00098628]
[1649190036580,0.054384,45979.0,45975.0,0.00098628]
[1649190037819,0.05492724,45979.0,45975.0,0.00098628]
[1649190038072,0.05492724,45979.0,45976.0,0.00101885]
[1649190038822,0.054384,45979.0,45976.0,0.00101885]
[1649190044071,0.054384,45979.0,45976.0,0.00190155]
[1649190046275,0.054384,45979.0,45976.0,0.00116236]
[1649190048281,0.054384,45979.0,45977.0,0.00089029]
[1649190050778,0.10437901,45980.0,45977.0,0.00089029]
[1649190050881,0.05,45980.0,45977.0,0.00089029]
[1649190051080,0.01968336,45981.0,45977.0,0.00089029]
[1649190051783,0.01968336,45981.0,45979.0,0.22742317]
[1649190051885,0.01968336,45981.0,45980.0,0.26703539]
[1649190054473,0.01968336,45981.0,45980.0,0.2688799]
[1649190055574,0.34096936,45981.0,45980.0,0.2688799]
[1649190055675,0.01968336,45981.0,45980.0,0.00184451]
[1649190055775,0.34096936,45981.0,45980.0,0.00184451]
[1649190056522,0.64096936,45981.0,45980.0,0.00184451]
[1649190056924,0.31968336,45981.0,45980.0,0.00184451]
[1649190057026,0.65183936,45981.0,45980.0,0.00184451]
[1649190058175,0.65183936,45981.0,45980.0,0.00089205]
[1649190060321,0.9901096,45981.0,45980.0,0.00089205]
[1649190061527,0.65183936,45981.0,45980.0,0.00089205]
[1649190061774,0.64096936,45981.0,45980.0,0.00089205]
[1649190061873,0.65183936,45981.0,45980.0,0.00089205]
[1649190064221,0.65183936,45981.0,45980.0,0.00203336]
[1649190064317,1.15183936,45981.0,45980.0,0.00203336]
[1649190066228,1.15183936,45981.0,45979.0,0.0020797]
[1649190066324,0.621286,45980.0,45979.0,0.0020797]
[1649190066424,0.632156,45980.0,45979.0,0.0020797]
[1649190069125,1.132156,45980.0,45979.0,0.0020797]
[1649190072545,1.132156,45980.0,45979.0,0.00200308]
[1649190072648,1.39868772,45980.0,45979.0,0.00200308]
[1649190073951,1.132156,45980.0,45979.0,0.00200308]
[1649190074802,1.39868772,45980.0,45979.0,0.00200308]
[1649190074953,1.49868772,45980.0,45979.0,0.00200308]
[1649190075152,1.232156,45980.0,45979.0,0.00200308]
[1649190075287,1.49836992,45980.0,45979.0,0.00200308]
[1649190075582,1.49837033,45980.0,45979.0,0.00200308]
[1649190075683,1.2316817,45980.0,45979.0,0.00200308]
[1649190075786,1.49837027,45980.0,45979.0,0.00200308]
[1649190075885,1.2316817,45980.0,45979.0,0.00200308]
[1649190076234,1.1316817,45980.0,45979.0,0.00200308]
[1649190076339,1.39836951,45980.0,45979.0,0.00200308]
[1649190076438,1.1316817,45980.0,45979.0,0.00200308]
[1649190077136,1.39836951,45980.0,45979.0,0.00200308]
[1649190078235,0.89836951,45980.0,45979.0,0.00200308]
[1649190078537,0.6316817,45980.0,45979.0,0.00200308]
[1649190079167,0.89836045,45980.0,45979.0,0.00200308]
[1649190079270,1.39836045,45980.0,45979.0,0.00200308]
[1649190080066,1.1316817,45980.0,45979.0,0.00200308]
[1649190080668,1.39835726,45980.0,45979.0,0.00200308]
[1649190080972,1.1316817,45980.0,45979.0,0.00200308]
[1649190082270,1.39835069,45980.0,45979.0,0.00200308]
[1649190082471,1.1316817,45980.0,45979.0,0.00200308]
[1649190082576,1.39835069,45980.0,45979.0,0.00200308]
[1649190083420,1.1316817,45980.0,45979.0,0.00200308]
[1649190085821,1.39666189,45980.0,45979.0,0.00200308]
[1649190085920,1.39454043,45980.0,45979.0,0.00200308]
[1649190086421,1.54331054,45980.0,45979.0,0.00200308]
[1649190086625,1.27663922,45980.0,45979.0,0.00200308]
[1649190087326,1.12786911,45980.0,45979.0,0.00200308]
[1649190087627,1.39454043,45980.0,45979.0,0.00200308]
[1649190089733,0.51087,45980.0,45979.0,0.00200308]
[1649190089882,0.5,45980.0,45979.0,0.00200308]
[1649190090427,0.821277,45980.0,45979.0,0.00200308]
[1649190090826,0.34686409,45980.0,45979.0,0.00200308]
[1649190090928,0.321277,45980.0,45979.0,0.00200308]
[1649190093335,0.621277,45980.0,45979.0,0.00200308]
[1649190093531,0.621277,45980.0,45979.0,0.00172012]
[1649190094374,0.621277,45980.0,45979.0,0.00113644]
[1649190095428,0.632147,45980.0,45979.0,0.00113644]
[1649190096232,0.89881832,45980.0,45979.0,0.00113644]
[1649190096533,0.89881832,45980.0,45979.0,0.00221438]
[1649190097804,0.632147,45980.0,45979.0,0.00221438]
[1649190097897,0.98660067,45980.0,45979.0,0.00221438]
[1649190098094,0.675647,45980.0,45979.0,0.00221438]
[1649190098296,1.13538908,45980.0,45979.0,0.00221438]
[1649190098545,1.23538908,45980.0,45979.0,0.00221438]
[1649190098747,1.14146225,45980.0,45979.0,0.00221438]
[1649190098998,1.14146225,45980.0,45972.0,0.00306923]
[1649190099098,0.19308176,45977.0,45972.0,0.00306923]
[1649190099197,0.375677,45974.0,45972.0,0.00306923]
[1649190099297,0.35,45973.0,45972.0,0.00306923]
[1649190099397,0.714777,45973.0,45972.0,0.00306923]
[1649190099847,0.9963328,45973.0,45972.0,0.00306923]
[1649190099948,2.4843239,45973.0,45972.0,0.00306923]
[1649190100250,2.81660477,45973.0,45972.0,0.00306923]
[1649190100349,2.81747567,45973.0,45972.0,0.00306923]
[1649190101528,3.31731159,45973.0,45972.0,0.00306923]
[1649190101777,3.16143414,45973.0,45972.0,0.00306923]
[1649190101926,3.52265117,45973.0,45972.0,0.00306923]
[1649190102229,3.3760295,45973.0,45972.0,0.00306923]
[1649190102426,1.55,45972.0,45957.0,0.92962247]
[1649190102525,0.05441,45965.0,45957.0,0.7524]
[1649190102626,0.73182713,45964.0,45956.0,0.00165836]
[1649190102727,0.73182713,45964.0,45963.0,0.00217231]
[1649190102825,0.53009641,45964.0,45963.0,0.00217231]
[1649190103129,1.07837226,45964.0,45963.0,0.00217231]
[1649190103329,1.08925226,45964.0,45963.0,0.00217231]
[1649190103632,0.054414,45962.0,45956.0,0.00165836]
[1649190103731,0.00179529,45960.0,45956.0,0.00165836]
[1649190103829,0.37569351,45959.0,45956.0,0.00165836]
[1649190104031,0.4774888,45959.0,45956.0,0.00165836]
[1649190104129,0.78796713,45959.0,45956.0,0.00165836]
[1649190104232,0.321277,45957.0,45956.0,0.00165836]
[1649190104432,0.59783664,45957.0,45956.0,0.00165836]
[1649190104534,0.321277,45957.0,45956.0,0.00165836]
[1649190105786,0.62358564,45957.0,45956.0,0.00165836]
[1649190105984,0.72358564,45957.0,45956.0,0.00165836]
[1649190106084,0.40230864,45957.0,45956.0,0.00165836]
[1649190106286,0.72358564,45957.0,45956.0,0.00165836]
[1649190106384,1.02358564,45957.0,45956.0,0.00165836]
[1649190106637,0.72358564,45957.0,45956.0,0.00165836]
[1649190106735,0.40230864,45957.0,45956.0,0.00165836]
[1649190106836,0.72358564,45957.0,45956.0,0.00165836]
[1649190107238,0.70230864,45957.0,45956.0,0.00165836]
[1649190107340,1.02358564,45957.0,45956.0,0.00165836]
[1649190107892,0.70230864,45957.0,45956.0,0.00165836]
[1649190108493,0.40230864,45957.0,45956.0,0.00165836]
[1649190108596,0.72358564,45957.0,45956.0,0.00165836]
[1649190108692,0.40230864,45957.0,45956.0,0.00165836]
[1649190108893,0.05,45957.0,45956.0,0.00165836]
[1649190109039,1.6727247,45958.0,45956.0,0.00165836]
[1649190109040,1.7227247,45958.0,45956.0,0.00165836]
[1649190109584,0.321277,45957.0,45956.0,0.00165836]
[1649190109685,1.7227247,45958.0,45956.0,0.00165836]
[1649190111939,0.05,45958.0,45956.0,0.00165836]
[1649190112039,0.1,45958.0,45956.0,0.00165836]
[1649190112139,0.05,45958.0,45956.0,0.00165836]
[1649190112238,0.321277,45959.0,45956.0,0.00165836]
[1649190112442,0.371277,45959.0,45956.0,0.00165836]
[1649190113772,0.37246233,45959.0,45956.0,0.00165836]
[1649190114172,0.00118533,45959.0,45956.0,0.00165836]
[1649190114271,0.321277,45958.0,45956.0,0.00165836]
[1649190114373,0.321277,45957.0,45956.0,0.00165836]
[1649190114573,0.371277,45957.0,45956.0,0.00165836]
[1649190114777,0.05,45957.0,45956.0,0.00165836]
[1649190114977,1.69377411,45961.0,45956.0,0.00165836]
[1649190115376,0.0010218,45960.0,45956.0,0.00165836]
[1649190115476,0.321277,45959.0,45956.0,0.00165836]
[1649190115577,0.0010218,45960.0,45956.0,0.00165836]
[1649190115676,0.321277,45959.0,45956.0,0.00165836]
[1649190115827,0.321277,45959.0,45956.0,0.00215495]
[1649190115926,0.421277,45959.0,45956.0,0.00215495]
[1649190116078,0.42235384,45959.0,45956.0,0.00215495]
[1649190116838,0.42235384,45959.0,45956.0,0.00165836]
[1649190116937,0.05442,45958.0,45956.0,0.00165836]
[1649190117036,0.621277,45957.0,45956.0,0.00165836]
[1649190117136,0.671277,45957.0,45956.0,0.00165836]
[1649190117235,0.721277,45957.0,45956.0,0.00165836]
[1649190117986,0.421277,45957.0,45956.0,0.00165836]
[1649190118189,0.371277,45957.0,45956.0,0.00165836]
[1649190119943,0.671277,45957.0,45956.0,0.00165836]
[1649190120879,0.19663147,45957.0,45956.0,0.00165836]
[1649190121031,0.321287,45957.0,45956.0,0.00165836]
[1649190122129,0.371287,45957.0,45956.0,0.00165836]
[1649190122880,0.05,45957.0,45956.0,0.00165836]
[1649190122982,0.01088,45960.0,45956.0,0.00165836]
[1649190123182,0.3222803,45959.0,45956.0,0.00165836]
[1649190123282,0.421287,45959.0,45956.0,0.00165836]
[1649190123682,0.1,45959.0,45956.0,0.00165836]
[1649190123787,0.321287,45958.0,45956.0,0.00165836]
[1649190125329,0.1,45959.0,45956.0,0.00165836]
[1649190125528,0.05,45959.0,45956.0,0.00165836]
[1649190125629,0.05,45959.0,45957.0,0.00080734]
[1649190125730,0.13303946,45961.0,45957.0,0.00080734]
[1649190126431,0.321287,45960.0,45957.0,0.00080734]
[1649190126533,0.32236463,45960.0,45957.0,0.00080734]
[1649190126632,0.32236463,45960.0,45957.0,0.0013001]
[1649190127233,0.66493389,45960.0,45953.0,0.002]
[1649190127387,0.2,45954.0,45942.0,0.003]
[1649190127487,0.2,45954.0,45941.0,0.001]
[1649190127488,0.25443667,45951.0,45941.0,0.001]
[1649190127583,1.64844929,45950.0,45941.0,0.001]
[1649190127690,1.02716229,45949.0,45941.0,0.001]
[1649190127831,0.332167,45948.0,45937.0,0.002]
[1649190127934,0.321287,45946.0,45937.0,0.002]
[1649190128083,0.22693767,45945.0,45937.0,0.002]
[1649190128189,0.621287,45944.0,45937.0,0.002]
[1649190128285,0.621287,45944.0,45936.0,0.003]
[1649190128286,0.36144747,45941.0,45936.0,0.003]
[1649190128435,2.27548869,45940.0,45928.0,0.002]
[1649190128583,0.321287,45935.0,45928.0,0.002]
[1649190128682,0.321287,45935.0,45929.0,0.001]
[1649190128784,0.0435,45934.0,45929.0,0.001]
[1649190128883,0.321287,45933.0,45929.0,0.001]
[1649190129083,0.0435,45932.0,45931.0,0.01056527]
[1649190129181,0.364787,45932.0,45931.0,0.01056527]
[1649190129485,0.414787,45932.0,45931.0,0.01056527]
[1649190130091,0.414787,45932.0,45931.0,0.01]
[1649190130285,0.97234956,45932.0,45931.0,0.01]
[1649190131142,0.92234956,45932.0,45931.0,0.01]
[1649190131588,0.91734956,45932.0,45931.0,0.01]
[1649190131886,0.91909805,45932.0,45931.0,0.01]
[1649190131985,1.06156229,45932.0,45931.0,0.01]
[1649190132087,1.11156229,45932.0,45931.0,0.01]
[1649190133088,1.16156229,45932.0,45931.0,0.01]
[1649190133795,1.16331072,45932.0,45931.0,0.01]
[1649190134194,0.60574816,45932.0,45931.0,0.01]
[1649190134295,0.56724816,45932.0,45931.0,0.01]
[1649190134494,0.10349692,45932.0,45931.0,0.01]
[1649190134697,0.00349692,45932.0,45931.0,0.01]
[1649190134796,0.05349692,45932.0,45931.0,0.01]
[1649190134896,0.00349692,45932.0,45931.0,0.01]
[1649190137836,0.00349692,45932.0,45931.0,0.26423205]
[1649190138032,0.00349692,45932.0,45931.0,0.01]
[1649190138737,0.32478392,45932.0,45931.0,0.01]
[1649190138840,0.37478392,45932.0,45931.0,0.01]
[1649190141431,0.61318422,45932.0,45931.0,0.01]
[1649190141531,0.37478392,45932.0,45931.0,0.01]
[1649190150988,0.37478392,45932.0,45929.0,0.22767025]
[1649190152839,0.05349692,45932.0,45929.0,0.22767025]
[1649190153042,0.00349692,45932.0,45929.0,0.22767025]
[1649190153442,0.00349692,45932.0,45930.0,0.321287]
[1649190153643,0.00349692,45932.0,45931.0,0.0435]
[1649190153746,0.00349692,45932.0,45931.0,0.082453]
[1649190153843,0.00143736,45932.0,45931.0,0.082453]
[1649190154403,0.00143736,45932.0,45931.0,0.0435]
[1649190154503,0.30144593,45948.0,45931.0,0.0435]
[1649190154603,0.30144593,45948.0,45940.0,0.27503345]
[1649190154703,0.35433343,45947.0,45940.0,0.27503345]
[1649190154804,0.26141303,45943.0,45933.0,0.2]
[1649190155306,0.03304643,45947.0,45933.0,0.2]
[1649190155505,0.35,45946.0,45933.0,0.2]
[1649190155605,0.05,45946.0,45933.0,0.2]
[1649190155705,0.00056515,45943.0,45932.0,0.2]
[1649190155809,0.00056515,45943.0,45934.0,0.25962154]
[1649190156307,0.23915715,45941.0,45934.0,0.25962154]
[1649190158196,0.00023023,45942.0,45934.0,0.25962154]
[1649190158350,0.00023023,45942.0,45934.0,0.25462154]
[1649190158947,0.4,45946.0,45934.0,0.25462154]
[1649190159047,0.1,45946.0,45934.0,0.25462154]
[1649190159146,0.25981433,45941.0,45934.0,0.25462154]
[1649190159246,0.00023024,45942.0,45934.0,0.25462154]
[1649190160198,0.054425,45945.0,45934.0,0.25462154]
[1649190160301,0.30925544,45945.0,45934.0,0.25462154]
[1649190160398,0.25483044,45945.0,45934.0,0.25462154]
[1649190160499,0.0005645,45942.0,45934.0,0.25462154]
[1649190161449,0.1,45946.0,45938.0,0.27473816]
[1649190161599,0.05,45946.0,45934.0,0.25462154]
[1649190161697,0.05,45945.0,45934.0,0.25462154]
[1649190161798,0.20885,45947.0,45934.0,0.25462154]
[1649190161898,0.0005645,45942.0,45935.0,0.321287]
[1649190162003,0.0005645,45942.0,45936.0,0.321287]
[1649190162148,0.0005645,45942.0,45935.0,0.321287]
[1649190162351,0.0005645,45942.0,45934.0,0.25462154]
[1649190162450,0.0005645,45942.0,45936.0,0.30307718]
[1649190162555,0.0005645,45942.0,45935.0,0.321287]
[1649190162651,0.23949926,45943.0,45934.0,0.25462154]
[1649190162852,0.0005645,45942.0,45934.0,0.25462154]
[1649190163607,0.0005645,45942.0,45936.0,0.28503507]
[1649190163802,0.1,45947.0,45936.0,0.28503507]
[1649190163903,0.05,45947.0,45936.0,0.28503507]
[1649190164004,0.05,45946.0,45936.0,0.28503507]
[1649190164153,0.00056467,45942.0,45937.0,0.038889]
[1649190164456,0.00056467,45942.0,45938.0,0.26197035]
[1649190164555,0.00056467,45942.0,45939.0,0.321287]
[1649190164656,0.00056467,45942.0,45940.0,0.321287]
[1649190164755,0.00056467,45942.0,45939.0,0.321287]
[1649190164855,0.00056467,45942.0,45938.0,0.26197035]
[1649190165004,0.05,45948.0,45938.0,0.26197035]
[1649190165105,0.01088,45949.0,45938.0,0.26197035]
[1649190165322,0.00054559,45943.0,45939.0,0.321287]
[1649190165417,0.00054559,45943.0,45938.0,0.26197035]
[1649190165715,0.00054559,45943.0,45939.0,0.321287]
[1649190165919,0.00054559,45943.0,45938.0,0.31638135]
[1649190166218,0.1,45947.0,45938.0,0.31638135]
[1649190166319,0.371287,45947.0,45946.0,0.30137781]
[1649190166422,0.05,45947.0,45946.0,0.30137781]
[1649190166621,0.371287,45947.0,45946.0,0.30137781]
[1649190166721,0.05,45947.0,45946.0,0.30137781]
[1649190166820,0.01088,45949.0,45946.0,0.30137781]
[1649190166921,0.321287,45948.0,45946.0,0.30137781]
[1649190167024,0.01088,45949.0,45946.0,0.30137781]
[1649190167121,0.321287,45948.0,45946.0,0.30137781]
[1649190167271,0.27551624,45948.0,45946.0,0.30137781]
[1649190167372,0.321287,45947.0,45946.0,0.30137781]
[1649190167473,0.05,45950.0,45946.0,0.30137781]
[1649190167572,0.321287,45949.0,45946.0,0.30137781]
[1649190167671,0.32183255,45949.0,45946.0,0.30137781]
[1649190167872,0.37624955,45949.0,45936.0,0.28503507]
[1649190167973,0.3,45948.0,45936.0,0.28503507]
[1649190168376,0.27303052,45944.0,45935.0,0.275]
[1649190168775,0.408846,45948.0,45935.0,0.275]
[1649190168874,0.00052584,45942.0,45935.0,0.275]
[1649190169049,0.00052584,45942.0,45939.0,0.2722691]
[1649190169846,0.27341664,45943.0,45939.0,0.2722691]
[1649190170045,0.27394248,45943.0,45939.0,0.2722691]
[1649190170999,0.27341664,45943.0,45939.0,0.2722691]
[1649190171298,0.27394248,45943.0,45939.0,0.2722691]
[1649190172199,0.27341664,45943.0,45939.0,0.2722691]
[1649190172498,0.2739434,45943.0,45939.0,0.2722691]
[1649190172698,0.2739434,45943.0,45935.0,0.275]
[1649190172847,0.054427,45941.0,45935.0,0.275]
[1649190172946,0.054427,45941.0,45936.0,0.321287]
[1649190173250,0.054427,45941.0,45933.0,0.17767329]
[1649190173851,0.054427,45941.0,45937.0,0.23531586]
[1649190178999,0.05433122,45941.0,45937.0,0.23531586]
[1649190179906,0.27827817,45940.0,45937.0,0.23531586]
[1649190180592,0.27827817,45940.0,45933.0,0.17767329]
[1649190181040,0.0083082,45940.0,45933.0,0.17767329]
[1649190181145,0.05433122,45941.0,45933.0,0.17767329]
[1649190181394,0.05433122,45941.0,45932.0,0.17767329]
[1649190181592,0.05433122,45941.0,45934.0,0.3027268]
[1649190182042,0.23336755,45940.0,45935.0,0.25573505]
[1649190182242,0.23336755,45940.0,45934.0,0.3027268]
[1649190183296,0.23336755,45940.0,45934.0,0.6075599]
[1649190183445,0.10433122,45941.0,45934.0,0.6075599]
[1649190183848,0.10433122,45941.0,45934.0,0.3027268]
[1649190183946,0.10433122,45941.0,45934.0,0.2927268]
[1649190184088,0.05433122,45941.0,45934.0,0.2927268]
[1649190184993,0.26784068,45940.0,45935.0,0.27713196]
[1649190185391,0.26784068,45940.0,45934.0,0.2927268]
[1649190186348,0.05433122,45941.0,45934.0,0.2927268]
[1649190187294,0.10433122,45941.0,45934.0,0.2927268]
[1649190187395,0.23521369,45938.0,45934.0,0.2927268]
[1649190187493,0.05,45938.0,45934.0,0.2927268]
[1649190187697,0.05,45938.0,45932.0,0.17767329]
[1649190187855,0.3,45937.0,45930.0,0.17767329]
[1649190187951,0.054434,45937.0,45930.0,0.17767329]
[1649190188049,0.35,45936.0,45929.0,0.0317]
[1649190188149,0.108882,45935.0,45929.0,0.0317]
[1649190188251,0.108882,45935.0,45927.0,0.17767329]
[1649190188655,0.3034801,45932.0,45927.0,0.17767329]
[1649190188857,0.3034801,45932.0,45926.0,0.17767329]
[1649190188858,0.054446,45931.0,45926.0,0.17767329]
[1649190189050,0.054446,45931.0,45925.0,0.17767329]